bitfinex/quotes_BTCUSD_20260127
["timestamp","ask_amount","ask_price","bid_price","bid_amount"]
[1769519618039,0.11326708,87970.0,87957.0,0.03129809]
[1769519618265,0.11326708,87969.0,87957.0,0.03129809]
[1769519618401,0.0002658,87972.0,87957.0,0.03129809]
[1769519618601,0.11326827,87971.0,87957.0,0.03129809]
[1769519618798,0.38520224,87970.0,87957.0,0.03129809]
[1769519619037,0.11326827,87969.0,87957.0,0.03129809]
[1769519619210,0.27193397,87970.0,87957.0,0.03129809]
[1769519619407,0.1132695,87969.0,87957.0,0.03129809]
[1769519619607,0.0002658,87972.0,87957.0,0.03129809]
[1769519619810,0.11326959,87971.0,87957.0,0.03129809]
[1769519620015,0.11326959,87970.0,87957.0,0.03129809]
[1769519620214,0.11326959,87969.0,87957.0,0.03129809]
[1769519620478,0.0002658,87972.0,87957.0,0.03129809]
[1769519620685,0.11327285,87971.0,87957.0,0.03129809]
[1769519620886,0.11327285,87970.0,87957.0,0.03097203]
[1769519621062,0.11327285,87969.0,87957.0,0.03097203]
[1769519621265,0.0002658,87972.0,87957.0,0.48939022]
[1769519621457,0.02291211,87975.0,87957.0,0.48168112]
[1769519621861,0.27193397,87970.0,87957.0,0.48168112]
[1769519622663,0.27193397,87970.0,87958.0,0.00801326]
[1769519622868,0.27193397,87970.0,87958.0,0.00768726]
[1769519623664,0.27193397,87970.0,87958.0,0.00736111]
[1769519625011,0.27193397,87970.0,87958.0,0.006709]
[1769519625220,0.27193397,87970.0,87958.0,0.00638302]
[1769519627594,0.27193397,87970.0,87959.0,0.45841819]
[1769519627841,0.27193397,87970.0,87960.0,0.00475263]
[1769519630958,0.27193397,87970.0,87960.0,0.00442666]
[1769519631366,0.27193397,87970.0,87960.0,0.0041007]
[1769519632810,0.02291211,87969.0,87960.0,0.0041007]
[1769519633005,0.02291211,87969.0,87954.0,0.46251916]
[1769519633167,0.02291211,87969.0,87954.0,0.45841819]
[1769519633590,0.02291211,87969.0,87954.0,0.21518519]
[1769519634582,0.02291211,87969.0,87954.0,0.2148592]
[1769519635509,0.02291211,87969.0,87955.0,0.00049284]
[1769519635788,0.02291211,87969.0,87955.0,0.46101475]
[1769519635943,0.02291211,87969.0,87955.0,0.46052191]
[1769519636131,0.02291211,87969.0,87956.0,0.00569239]
[1769519636347,0.02291211,87969.0,87956.0,0.4662143]
[1769519636544,0.02291211,87969.0,87956.0,0.46052191]
[1769519636751,0.02291211,87969.0,87957.0,0.0045554]
[1769519637594,0.02291211,87969.0,87957.0,0.00422944]
[1769519637863,0.02291211,87969.0,87956.0,0.46052191]
[1769519638063,0.02291211,87969.0,87957.0,0.46475134]
[1769519638263,0.02291211,87969.0,87957.0,0.46052191]
[1769519639889,0.02291211,87969.0,87958.0,0.00422939]
[1769519641426,0.18130086,87980.0,87959.0,0.46052191]
[1769519641654,0.02674056,87979.0,87961.0,0.46052191]
[1769519642659,0.02413243,87979.0,87963.0,0.48352696]
[1769519647729,0.1179989,87980.0,87963.0,0.46052191]
[1769519647952,0.1179989,87980.0,87964.0,0.48352696]
[1769519649239,0.00260813,87979.0,87964.0,0.48352696]
[1769519657830,0.11343284,87978.0,87964.0,0.48352696]
[1769519658030,0.11604097,87977.0,87964.0,0.48352696]
[1769519658251,0.11343284,87976.0,87964.0,0.48352696]
[1769519658657,0.00260813,87979.0,87964.0,0.48352696]
[1769519658851,0.11343509,87978.0,87964.0,0.48352696]
[1769519659053,0.11604322,87977.0,87964.0,0.46052191]
[1769519659337,0.11343509,87976.0,87964.0,0.46052191]
[1769519659759,0.4965449,87977.0,87960.0,0.27193397]
[1769519659981,0.11343764,87976.0,87959.0,0.48352696]
[1769519660184,0.4965449,87977.0,87959.0,0.48352696]
[1769519660409,0.11344121,87976.0,87959.0,0.48352696]
[1769519660626,0.4965449,87977.0,87959.0,0.48352696]
[1769519660810,0.11344121,87976.0,87959.0,0.48352696]
[1769519660970,0.4965449,87977.0,87959.0,0.48352696]
[1769519661170,0.11344121,87976.0,87959.0,0.48352696]
[1769519661386,0.4965449,87977.0,87959.0,0.48352696]
[1769519661582,0.11344505,87976.0,87959.0,0.48352696]
[1769519661814,0.4965449,87977.0,87959.0,0.48352696]
[1769519661815,0.51972531,87977.0,87959.0,0.48352696]
[1769519662055,0.11344505,87976.0,87959.0,0.48352696]
[1769519662182,0.51972531,87977.0,87959.0,0.48352696]
[1769519662388,0.11345114,87976.0,87959.0,0.48352696]
[1769519662621,0.51972531,87977.0,87959.0,0.48352696]
[1769519662806,0.11346653,87976.0,87959.0,0.48352696]
[1769519663004,0.51972531,87977.0,87959.0,0.48352696]
[1769519663240,0.11346842,87976.0,87959.0,0.48352696]
[1769519663388,0.51972531,87977.0,87959.0,0.48352696]
[1769519663389,0.11346842,87975.0,87959.0,0.48352696]
[1769519663587,0.02318041,87976.0,87959.0,0.48352696]
[1769519663919,0.11347407,87975.0,87959.0,0.48352696]
[1769519664090,0.02318041,87976.0,87959.0,0.48352696]
[1769519664289,0.11347985,87975.0,87959.0,0.48352696]
[1769519664490,0.02318041,87976.0,87959.0,0.48352696]
[1769519664690,0.11348761,87975.0,87959.0,0.48352696]
[1769519664941,0.02318041,87976.0,87959.0,0.48352696]
[1769519665153,0.11348786,87975.0,87959.0,0.48352696]
[1769519665351,0.02318041,87976.0,87959.0,0.48352696]
[1769519665569,0.11350376,87975.0,87959.0,0.48352696]
[1769519665771,0.02318041,87976.0,87959.0,0.48352696]
[1769519665945,0.11350376,87975.0,87959.0,0.48352696]
[1769519666148,0.11350376,87974.0,87959.0,0.48352696]
[1769519666348,0.02318041,87976.0,87959.0,0.48352696]
[1769519666550,0.11352094,87975.0,87959.0,0.48352696]
[1769519666726,0.11352094,87974.0,87959.0,0.48352696]
[1769519666949,0.02318041,87976.0,87959.0,0.48352696]
[1769519667150,0.11352136,87975.0,87959.0,0.48352696]
[1769519667344,0.11352136,87974.0,87959.0,0.48352696]
[1769519667555,0.0568416,87964.0,87959.0,0.48352696]
[1769519669015,0.02318041,87976.0,87959.0,0.48352696]
[1769519669165,0.05684144,87964.0,87959.0,0.48352696]
[1769519671723,0.02482114,87976.0,87959.0,0.48352696]
[1769519671873,0.05684143,87964.0,87959.0,0.48352696]
[1769519672275,0.05684143,87964.0,87953.0,0.4709979]
[1769519673432,0.05684143,87964.0,87949.0,0.0001096]
[1769519673640,0.05684143,87964.0,87949.0,0.4467008]
[1769519673785,0.05684143,87964.0,87949.0,0.4711075]
[1769519674116,0.05684143,87964.0,87951.0,0.4465912]
[1769519674318,0.05684143,87964.0,87949.0,0.0001096]
[1769519674515,0.08166257,87964.0,87949.0,0.0001096]
[1769519674715,0.08166257,87964.0,87949.0,0.4467008]
[1769519675091,0.08166257,87964.0,87949.0,0.44637486]
[1769519675767,0.08166257,87964.0,87948.0,0.0244067]
[1769519676056,0.08166257,87964.0,87949.0,0.4465912]
[1769519677396,0.08166257,87964.0,87949.0,0.44626524]
[1769519679802,0.05684143,87964.0,87949.0,0.47067194]
[1769519681732,0.05684143,87964.0,87949.0,0.47034601]
[1769519682369,0.05684143,87964.0,87950.0,0.0244067]
[1769519682981,0.05684143,87964.0,87950.0,0.02302484]
[1769519684611,0.00260813,87963.0,87950.0,0.02302484]
[1769519686272,0.00260813,87963.0,87951.0,0.0244067]
[1769519687971,0.1287648,87970.0,87951.0,0.0244067]
[1769519688119,0.60380915,87970.0,87951.0,0.03356662]
[1769519688328,0.05684176,87963.0,87951.0,0.03356662]
[1769519690153,0.47504435,87960.0,87941.0,0.03806524]
[1769519690383,0.47504435,87960.0,87940.0,0.0001616]
[1769519690384,0.05684176,87947.0,87940.0,0.0001616]
[1769519696861,0.45965785,87970.0,87948.0,0.04481353]
[1769519697063,0.45965785,87970.0,87952.0,0.04481353]
[1769519697258,0.05685284,87963.0,87952.0,0.04481353]
[1769519698288,0.51651069,87963.0,87952.0,0.04481353]
[1769519698892,0.51651069,87963.0,87945.0,0.04706296]
[1769519703982,0.05685284,87953.0,87945.0,0.04706296]
[1769519706078,0.45965785,87963.0,87945.0,0.04706296]
[1769519706279,0.0001616,87974.0,87948.0,0.45897375]
[1769519706280,0.45965785,87969.0,87948.0,0.45897375]
[1769519706482,0.05685196,87957.0,87951.0,0.04931211]
[1769519708010,0.0001616,87974.0,87952.0,0.51582258]
[1769519708217,0.0001616,87974.0,87960.0,0.32120413]
[1769519708417,0.05683921,87968.0,87961.0,0.04931211]
[1769519708973,0.00599551,87968.0,87961.0,0.04931211]
[1769519709505,0.0001616,87974.0,87962.0,0.04931211]
[1769519709660,0.05683885,87968.0,87962.0,0.04931211]
[1769519711625,0.0001764,87974.0,87960.0,0.27189202]
[1769519711833,0.0001764,87974.0,87963.0,0.45897375]
[1769519712046,0.05683834,87969.0,87965.0,0.04931211]
[1769519714234,0.01493751,87969.0,87965.0,0.04931211]
[1769519714436,0.01493751,87969.0,87966.0,0.04931211]
[1769519715466,0.0001764,87974.0,87966.0,0.04931211]
[1769519715673,0.0001764,87974.0,87960.0,0.27189202]
[1769519715674,0.0001764,87974.0,87965.0,0.04706293]
[1769519715986,0.0001764,87974.0,87964.0,0.27189202]
[1769519715987,0.0001764,87974.0,87968.0,0.04706293]
[1769519716190,0.05683543,87973.0,87968.0,0.04706293]
[1769519716397,0.05683543,87973.0,87969.0,0.04706293]
[1769519718936,0.05683543,87973.0,87962.0,0.45897375]
[1769519718937,0.05683543,87973.0,87963.0,0.04481369]
[1769519723303,0.05683543,87973.0,87958.0,0.0380658]
[1769519723304,0.4666765,87972.0,87958.0,0.0380658]
[1769519723882,0.05683543,87973.0,87958.0,0.0380658]
[1769519725071,0.53980535,87973.0,87958.0,0.0380658]
[1769519737986,0.05683543,87956.0,87946.0,0.46248056]
[1769519738188,0.05683543,87956.0,87943.0,0.02397589]
[1769519740591,0.05683543,87956.0,87943.0,0.0001172]
[1769519741596,0.50648298,87955.0,87943.0,0.0001172]
[1769519744208,0.48296992,87955.0,87943.0,0.0001172]
[1769519744409,0.50648298,87954.0,87943.0,0.0001172]
[1769519746724,0.02351306,87954.0,87943.0,0.0001172]
[1769519746930,0.05683543,87956.0,87943.0,0.0001172]
[1769519748288,0.05683543,87956.0,87934.0,0.1169468]
[1769519748289,0.48296992,87952.0,87934.0,0.0001468]
[1769519748505,0.05683543,87939.0,87934.0,0.0001468]
[1769519753725,0.05683543,87939.0,87934.0,0.02400549]
[1769519754994,0.48296992,87946.0,87934.0,0.02400549]
[1769519755227,0.04687984,87939.0,87935.0,0.48531635]
[1769519755527,0.0568576,87939.0,87935.0,0.48531635]
[1769519755723,0.0568576,87939.0,87936.0,0.48531635]
[1769519755872,0.0568576,87939.0,87937.0,0.02340659]
[1769519756292,0.1168,87962.0,87940.0,0.48531635]
[1769519756546,0.1168,87962.0,87943.0,0.02340659]
[1769519756745,0.43889225,87964.0,87934.0,0.06837851]
[1769519756746,0.55569225,87964.0,87950.0,0.27188794]
[1769519756906,0.05684567,87958.0,87950.0,0.27188794]
[1769519757732,0.05684567,87958.0,87948.0,0.02340659]
[1769519760615,0.05684567,87958.0,87949.0,0.48531635]
[1769519760877,0.05684567,87958.0,87950.0,0.02340659]
[1769519765651,0.1168,87970.0,87950.0,0.02340659]
[1769519765847,0.43889225,87969.0,87950.0,0.02340659]
[1769519766166,0.05684531,87958.0,87950.0,0.02340659]
[1769519767299,0.05684531,87958.0,87944.0,0.48531635]
[1769519767569,0.43889225,87957.0,87943.0,0.0001468]
[1769519767705,0.46312482,87957.0,87943.0,0.0001468]
[1769519768725,0.43889225,87955.0,87943.0,0.0001468]
[1769519768924,0.46312482,87955.0,87943.0,0.0001468]
[1769519771334,0.43889225,87955.0,87943.0,0.0001468]
[1769519775367,0.05684531,87958.0,87943.0,0.0001468]
[1769519775824,0.49573756,87958.0,87943.0,0.0001468]
[1769519776735,0.51997013,87958.0,87943.0,0.0001468]
[1769519777064,0.43889225,87954.0,87943.0,0.0001468]
[1769519777286,0.46312482,87954.0,87943.0,0.0001468]
[1769519780657,0.05684531,87958.0,87943.0,0.0001468]
[1769519781239,0.51997013,87958.0,87943.0,0.0001468]
[1769519786118,0.08107788,87958.0,87943.0,0.0001468]
[1769519786372,0.08107788,87958.0,87943.0,0.02481026]
[1769519788752,0.02264715,87956.0,87943.0,0.0001468]
[1769519789035,0.48040318,87955.0,87943.0,0.0001468]
[1769519789492,0.05684531,87958.0,87943.0,0.0001468]
[1769519790121,0.45775603,87957.0,87943.0,0.0001468]
[1769519790350,0.02264715,87956.0,87943.0,0.0001468]
[1769519794757,0.05684531,87958.0,87934.0,0.0001468]
[1769519794758,0.27199777,87953.0,87934.0,0.0001468]
[1769519794961,0.05684531,87946.0,87934.0,0.0001468]
[1769519802431,0.51460134,87946.0,87934.0,0.0001468]
[1769519802640,0.27199777,87944.0,87934.0,0.0001468]
[1769519802841,0.48040318,87944.0,87934.0,0.0001468]
[1769519803053,0.05669851,87932.0,87926.0,0.47870254]
[1769519803687,0.05669851,87932.0,87928.0,0.45403908]
[1769519803919,0.05669851,87932.0,87930.0,0.45403908]
[1769519804122,0.05669851,87932.0,87930.0,0.47870254]
[1769519805442,0.05669851,87932.0,87925.0,0.0001468]
[1769519805986,0.05669851,87932.0,87925.0,0.02481026]
[1769519806191,0.30507048,87941.0,87925.0,0.47884934]
[1769519806426,0.05687888,87932.0,87925.0,0.47884934]
[1769519807018,0.02264715,87944.0,87925.0,0.47884934]
[1769519807216,0.05686212,87932.0,87925.0,0.47884934]
[1769519807604,0.05686212,87932.0,87925.0,0.45418588]
[1769519807804,0.05686212,87932.0,87926.0,0.02466346]
[1769519808613,0.05686212,87932.0,87927.0,0.45403908]
[1769519808823,0.05686212,87932.0,87930.0,0.02466346]
[1769519812286,0.05686212,87932.0,87925.0,0.47884934]
[1769519812524,0.05686212,87932.0,87925.0,0.23272147]
[1769519812866,0.05686212,87932.0,87916.0,0.0001468]
[1769519812867,0.01,87925.0,87916.0,0.0001468]
[1769519813104,0.45775603,87931.0,87916.0,0.02481026]
[1769519819421,0.05686212,87932.0,87916.0,0.49087761]
[1769519819594,0.05686212,87932.0,87917.0,0.46606735]
[1769519819801,0.05686212,87932.0,87918.0,0.02251616]
[1769519821241,0.05686212,87932.0,87916.0,0.0001468]
[1769519821242,0.48035372,87929.0,87916.0,0.0001468]
[1769519821414,0.48035372,87927.0,87916.0,0.0001468]
[1769519821817,0.05686212,87932.0,87916.0,0.0001468]
[1769519822015,0.05686212,87932.0,87916.0,0.02299575]
[1769519822649,0.53721584,87932.0,87916.0,0.02299575]
[1769519824677,0.05686212,87932.0,87916.0,0.46621415]
[1769519824876,0.05686212,87932.0,87917.0,0.46606735]
[1769519825048,0.05686212,87932.0,87918.0,0.02284895]
[1769519827186,0.53721584,87932.0,87918.0,0.02284895]
[1769519830043,0.59136763,87932.0,87918.0,0.02284895]
[1769519831152,0.48035372,87929.0,87916.0,0.0001468]
[1769519831470,0.05686212,87919.0,87916.0,0.0001468]
[1769519832427,0.00430208,87928.0,87916.0,0.0001468]
[1769519832613,0.05687934,87918.0,87916.0,0.0001468]
[1769519836817,0.05687934,87918.0,87916.0,0.0001468]
[1769519841177,0.05687934,87918.0,87908.0,0.0001468]
[1769519841517,0.05687934,87918.0,87894.0,0.01137734]
[1769519841518,0.48035372,87904.0,87879.0,0.0001]
[1769519841709,0.0097064,87906.0,87883.0,0.02251616]
[1769519841710,0.05687934,87884.0,87883.0,0.02251616]
[1769519841888,0.11684,87890.0,87883.0,0.02251616]
[1769519842118,0.03439995,87883.0,87879.0,0.0001]
[1769519842321,0.03439995,87883.0,87882.0,0.02342788]
[1769519842499,0.03439995,87883.0,87882.0,0.48829343]
[1769519842919,0.03425315,87883.0,87882.0,0.48829343]
[1769519843163,0.11684,87890.0,87882.0,0.48829343]
[1769519843356,0.11684,87890.0,87879.0,0.0001]
[1769519843512,0.45155952,87893.0,87879.0,0.0001]
[1769519843716,0.11684,87892.0,87879.0,0.0001]
[1769519844161,0.11684,87892.0,87879.0,0.46496555]
[1769519849388,0.11684,87892.0,87879.0,0.0001]
[1769519850414,0.1795737,87892.0,87879.0,0.0001]
[1769519850855,0.27199777,87890.0,87879.0,0.0001]
[1769519851031,0.1795737,87892.0,87879.0,0.0001]
[1769519851644,0.20359703,87892.0,87879.0,0.0001]
[1769519852400,0.14086333,87892.0,87879.0,0.0001]
[1769519852734,0.11684,87892.0,87879.0,0.0001]
[1769519852934,0.11684,87892.0,87879.0,0.50187974]
[1769519853136,0.11688,87891.0,87879.0,0.50187974]
[1769519853335,0.01137501,87912.0,87879.0,0.50187974]
[1769519853336,0.02402333,87907.0,87883.0,0.02376157]
[1769519853545,0.02402333,87914.0,87892.0,0.02376157]
[1769519853746,0.11688,87913.0,87895.0,0.50177974]
[1769519853955,0.11688,87913.0,87898.0,0.02376157]
[1769519854120,0.11688,87913.0,87899.0,0.50177974]
[1769519854670,0.27224857,87910.0,87894.0,0.50177974]
[1769519855278,0.11688,87909.0,87894.0,0.50177974]
[1769519860158,0.02402333,87908.0,87894.0,0.50177974]
[1769519860359,0.09001696,87907.0,87894.0,0.50177974]
[1769519862035,0.02402333,87908.0,87894.0,0.50177974]
[1769519865852,0.48701773,87907.0,87883.0,0.50177974]
[1769519865999,0.02402333,87906.0,87885.0,0.50177974]
[1769519866396,0.02402333,87906.0,87885.0,0.52554131]
[1769519866598,0.27224857,87900.0,87881.0,0.50177974]
[1769519866803,0.02402333,87899.0,87881.0,0.50177974]
[1769519867044,0.02402333,87899.0,87881.0,0.52554131]
[1769519867219,0.02402333,87899.0,87883.0,0.50177974]
[1769519867429,0.02402333,87899.0,87883.0,0.52554131]
[1769519869645,0.02402333,87899.0,87883.0,0.50177974]
[1769519870515,0.02402333,87899.0,87880.0,0.50177974]
[1769519870711,0.02962719,87898.0,87880.0,0.50177974]
[1769519870921,0.27224857,87900.0,87880.0,0.50177974]
[1769519870922,0.02402333,87897.0,87880.0,0.50177974]
[1769519873218,0.02402333,87897.0,87881.0,0.52812754]
[1769519873432,0.02402333,87897.0,87881.0,0.52251719]
[1769519873572,0.02402333,87897.0,87883.0,0.50177974]
[1769519873771,0.02402333,87897.0,87885.0,0.50177974]
[1769519874027,0.02402333,87897.0,87886.0,0.00561002]
[1769519874226,0.02402333,87897.0,87885.0,0.50177974]
[1769519883883,0.02372855,87897.0,87885.0,0.50177974]
[1769519885555,0.02372855,87897.0,87880.0,0.49746628]
[1769519889755,0.02318428,87889.0,87879.0,0.0001]
[1769519892211,0.27224857,87890.0,87879.0,0.0001]
[1769519892212,0.50227611,87888.0,87879.0,0.0001]
[1769519892428,0.27224857,87890.0,87879.0,0.0001]
[1769519892429,0.02318428,87885.0,87879.0,0.0001]
[1769519892624,0.02318428,87885.0,87873.0,0.0102334]
[1769519892625,0.50227611,87883.0,87873.0,0.0102334]
[1769519892830,0.02318428,87877.0,87873.0,0.0102334]
[1769519893686,0.02318428,87882.0,87873.0,0.0102334]
[1769519896403,0.27224857,87890.0,87870.0,0.0002]
[1769519896626,0.11688,87884.0,87873.0,0.49746628]
[1769519902413,0.11688,87884.0,87870.0,0.0002]
[1769519904015,0.14169197,87884.0,87870.0,0.0002]
[1769519904241,0.27224857,87882.0,87870.0,0.0002]
[1769519904600,0.02495519,87881.0,87870.0,0.0002]
[1769519905951,0.52879019,87881.0,87870.0,0.0002]
[1769519906900,0.02495519,87881.0,87870.0,0.0002]
[1769519909566,0.503835,87881.0,87870.0,0.0002]
[1769519909730,0.11425155,87880.0,87870.0,0.0002]
[1769519910981,0.43606442,87881.0,87870.0,0.0002]
[1769519912589,0.01802609,87880.0,87870.0,0.0002]
[1769519912795,0.503835,87879.0,87870.0,0.0002]
[1769519914090,0.503835,87877.0,87870.0,0.0002]
[1769519915635,0.27248099,87880.0,87870.0,0.0002]
[1769519916102,0.01802609,87883.0,87870.0,0.0002]
[1769519916310,0.1091483,87883.0,87870.0,0.0002]
[1769519917432,0.52186109,87899.0,87873.0,0.49137508]
[1769519917668,0.11692,87892.0,87876.0,0.02446447]
[1769519917797,0.08536571,87910.0,87878.0,0.02446447]
[1769519918002,0.06024,87900.0,87884.0,0.02446447]
[1769519918313,0.06024,87900.0,87888.0,0.02446447]
[1769519920162,0.33272099,87900.0,87888.0,0.02446447]
[1769519920705,0.06024,87900.0,87888.0,0.02446447]
[1769519920907,0.33272099,87900.0,87888.0,0.02446447]
[1769519924827,0.27248099,87900.0,87888.0,0.02446447]
[1769519925118,0.11692,87899.0,87888.0,0.02446447]
[1769519927613,0.18747297,87899.0,87878.0,0.49137508]
[1769519927825,0.27248099,87890.0,87879.0,0.02446447]
[1769519928032,0.503835,87898.0,87880.0,0.02446447]
[1769519928239,0.503835,87898.0,87881.0,0.49137508]
[1769519928452,0.503835,87898.0,87883.0,0.02446447]
[1769519928875,0.11692,87899.0,87883.0,0.51583955]
[1769519929262,0.17254385,87900.0,87884.0,0.56742351]
[1769519932160,0.17254385,87900.0,87884.0,0.51583955]
[1769519934119,0.19749904,87900.0,87884.0,0.51583955]
[1769519937629,0.02310798,87899.0,87884.0,0.49137508]
[1769519942716,0.02674101,87897.0,87884.0,0.49137508]
[1769519942925,0.11329506,87896.0,87884.0,0.49137508]
[1769519943102,0.11329506,87895.0,87884.0,0.49137508]
[1769519943312,0.11329506,87894.0,87884.0,0.49137508]
[1769519943514,0.11329506,87893.0,87884.0,0.49137508]
[1769519943710,0.11329506,87892.0,87884.0,0.49137508]
[1769519943921,0.11329506,87891.0,87884.0,0.49137508]
[1769519944127,0.02674101,87897.0,87884.0,0.49137508]
[1769519944318,0.11317539,87896.0,87884.0,0.49137508]
[1769519944646,0.11317539,87895.0,87884.0,0.49137508]
[1769519944842,0.11317539,87894.0,87884.0,0.49137508]
[1769519945171,0.11317539,87893.0,87884.0,0.49137508]
[1769519945373,0.02674101,87897.0,87884.0,0.49137508]
[1769519945524,0.11313607,87896.0,87884.0,0.49137508]
[1769519945690,0.11313607,87895.0,87884.0,0.49137508]
[1769519945903,0.11313607,87894.0,87884.0,0.49137508]
[1769519946105,0.02674101,87897.0,87884.0,0.49137508]
[1769519946305,0.11310264,87896.0,87884.0,0.49137508]
[1769519946518,0.11310264,87895.0,87884.0,0.49137508]
[1769519946717,0.11310264,87894.0,87884.0,0.49137508]
[1769519946930,0.02674101,87897.0,87884.0,0.49137508]
[1769519947126,0.11310258,87896.0,87884.0,0.49137508]
[1769519947329,0.11310258,87895.0,87884.0,0.49137508]
[1769519947551,0.02674101,87897.0,87884.0,0.49137508]
[1769519947755,0.11307352,87896.0,87884.0,0.49137508]
[1769519947965,0.11307352,87895.0,87884.0,0.49137508]
[1769519948165,0.02674101,87897.0,87884.0,0.49137508]
[1769519948565,0.11304855,87896.0,87884.0,0.49137508]
[1769519948781,0.02674101,87897.0,87884.0,0.49137508]
[1769519949026,0.11304851,87896.0,87884.0,0.49137508]
[1769519951212,0.02674101,87897.0,87884.0,0.49137508]
[1769519954188,0.0137822,87900.0,87885.0,0.04913751]
[1769519954525,0.03810782,87899.0,87885.0,0.04913751]
[1769519955847,0.04035664,87898.0,87880.0,0.50655983]
[1769519957185,0.27248099,87890.0,87870.0,0.0002]
[1769519957401,0.04035664,87889.0,87870.0,0.0002]
[1769519957615,0.04035664,87889.0,87870.0,0.50675983]
[1769519959309,0.4883405,87891.0,87870.0,0.50675983]
[1769519959310,0.0001272,87901.0,87871.0,0.50655983]
[1769519959532,0.11299069,87900.0,87882.0,0.51170557]
[1769519959770,0.0001272,87901.0,87882.0,0.51170557]
[1769519959771,0.0001272,87901.0,87882.0,0.50655983]
[1769519959993,0.0001272,87901.0,87886.0,0.50655983]
[1769519960633,0.02323518,87901.0,87886.0,0.50655983]
[1769519960808,0.02323518,87901.0,87887.0,0.05162033]
[1769519961038,0.02323518,87901.0,87887.0,0.55818016]
[1769519965091,0.02320218,87901.0,87887.0,0.55818016]
[1769519965301,0.1130968,87900.0,87887.0,0.55818016]
[1769519965450,0.02328687,87898.0,87876.0,0.48559139]
[1769519965654,0.11309395,87897.0,87876.0,0.48559139]
[1769519965855,0.02328687,87896.0,87876.0,0.48559139]
[1769519967018,0.02338107,87896.0,87876.0,0.48559139]
[1769519967445,0.02338107,87896.0,87879.0,0.02495017]
[1769519967650,0.02338107,87896.0,87880.0,0.48559139]
[1769519967886,0.02338107,87896.0,87880.0,0.53664555]
[1769519968278,0.11318243,87895.0,87880.0,0.53664555]
[1769519968561,0.02338107,87896.0,87880.0,0.53664555]
[1769519968764,0.11318259,87895.0,87880.0,0.53664555]
[1769519968896,0.02338107,87896.0,87880.0,0.53664555]
[1769519969104,0.11318862,87895.0,87881.0,0.54064793]
[1769519969360,0.11318862,87894.0,87881.0,0.54064793]
[1769519969573,0.11318862,87893.0,87881.0,0.54064793]
[1769519969717,0.11318862,87892.0,87881.0,0.54064793]
[1769519969919,0.02338107,87896.0,87881.0,0.54064793]
[1769519970140,0.11323437,87895.0,87881.0,0.54064793]
[1769519970365,0.11323437,87894.0,87881.0,0.54064793]
[1769519970606,0.11323437,87893.0,87882.0,0.53664555]
[1769519970819,0.11323437,87892.0,87882.0,0.53664555]
[1769519971025,0.02338107,87896.0,87882.0,0.53664555]
[1769519971324,0.11329483,87895.0,87882.0,0.53664555]
[1769519971533,0.11329483,87894.0,87882.0,0.53664555]
[1769519971720,0.11329483,87893.0,87883.0,0.05505654]
[1769519972028,0.11329483,87892.0,87883.0,0.05505654]
[1769519972270,0.11329483,87891.0,87883.0,0.05505654]
[1769519972478,0.11329483,87890.0,87883.0,0.05505654]
[1769519972713,0.11329483,87889.0,87883.0,0.05505654]
[1769519972856,0.11329483,87888.0,87884.0,0.48559139]
[1769519973198,0.02338107,87896.0,87884.0,0.48559139]
[1769519974008,0.02338107,87896.0,87879.0,0.02495017]
[1769519974246,0.47188322,87896.0,87879.0,0.02495017]
[1769519974367,0.49517009,87896.0,87879.0,0.02495017]
[1769519974571,0.49517009,87896.0,87879.0,0.51054156]
[1769519974785,0.49517009,87896.0,87880.0,0.05105416]
[1769519974979,0.49517009,87896.0,87880.0,0.53664555]
[1769519975190,0.02338107,87896.0,87880.0,0.53664555]
[1769519977119,0.02338107,87896.0,87880.0,0.56159572]
[1769519977987,9.42e-05,87896.0,87880.0,0.53664555]
[1769519978189,9.42e-05,87896.0,87882.0,0.48559139]
[1769519978425,9.42e-05,87896.0,87882.0,0.51054156]
[1769519978615,9.42e-05,87896.0,87884.0,0.48559139]
[1769519983026,9.42e-05,87896.0,87884.0,0.51054156]
[1769519984990,0.11341193,87895.0,87884.0,0.51054156]
[1769519985329,0.11341193,87894.0,87884.0,0.51054156]
[1769519985526,0.11341193,87893.0,87884.0,0.51054156]
[1769519985842,0.11341193,87892.0,87884.0,0.51054156]
[1769519985996,0.11341193,87891.0,87884.0,0.51054156]
[1769519986197,0.11341193,87890.0,87884.0,0.51054156]
[1769519986407,0.11341193,87889.0,87884.0,0.51054156]
[1769519986759,9.42e-05,87896.0,87884.0,0.51054156]
[1769519986963,0.11340934,87895.0,87884.0,0.51054156]
[1769519987169,0.11340934,87894.0,87884.0,0.51054156]
[1769519987397,0.11340934,87893.0,87884.0,0.51054156]
[1769519987574,0.11340934,87892.0,87884.0,0.51054156]
[1769519987774,0.11340934,87891.0,87884.0,0.51054156]
[1769519987996,0.11340934,87890.0,87884.0,0.51054156]
[1769519988196,0.11340934,87889.0,87884.0,0.51054156]
[1769519988400,9.42e-05,87896.0,87884.0,0.51054156]
[1769519988607,0.11340765,87895.0,87884.0,0.51054156]
[1769519988770,0.11340765,87894.0,87884.0,0.51054156]
[1769519988970,0.11340765,87893.0,87884.0,0.51054156]
[1769519989272,0.11340765,87892.0,87884.0,0.51054156]
[1769519989509,0.11340765,87891.0,87884.0,0.51054156]
[1769519989709,0.11340765,87890.0,87884.0,0.51054156]
[1769519989887,0.11340765,87889.0,87884.0,0.48559139]
[1769519990094,0.11340765,87888.0,87886.0,0.02495017]
[1769519990293,9.42e-05,87896.0,87886.0,0.02495017]
[1769519990502,0.11341246,87895.0,87886.0,0.02495017]
[1769519990692,0.11341246,87894.0,87886.0,0.02495017]
[1769519990896,0.11341246,87893.0,87886.0,0.02495017]
[1769519991117,0.11341246,87892.0,87886.0,0.02495017]
[1769519991296,0.11341246,87891.0,87886.0,0.02495017]
[1769519991497,0.11341246,87890.0,87886.0,0.02495017]
[1769519991697,0.11341246,87889.0,87886.0,0.02495017]
[1769519991917,0.11341246,87888.0,87886.0,0.02495017]
[1769519992127,9.42e-05,87896.0,87886.0,0.02495017]
[1769519992349,0.11342147,87895.0,87886.0,0.02495017]
[1769519992553,0.11342147,87894.0,87886.0,0.02495017]
[1769519992775,0.11342147,87893.0,87886.0,0.02495017]
[1769519992984,0.11342147,87892.0,87886.0,0.02495017]
[1769519993163,9.42e-05,87896.0,87886.0,0.02495017]
[1769519993164,0.11342147,87891.0,87886.0,0.02495017]
[1769519993399,0.11342147,87890.0,87886.0,0.02495017]
[1769519993584,0.11342147,87889.0,87886.0,0.02495017]
[1769519993833,9.42e-05,87896.0,87871.0,0.48559139]
[1769519994041,9.42e-05,87896.0,87874.0,0.02495017]
[1769519994042,0.01,87886.0,87874.0,0.02495017]
[1769519994253,0.01,87886.0,87877.0,0.46866164]
[1769519994528,9.42e-05,87896.0,87870.0,0.0002]
[1769519994529,9.42e-05,87896.0,87879.0,0.49186137]
[1769519994715,0.11342829,87895.0,87879.0,0.49186137]
[1769519995019,0.11342829,87894.0,87880.0,0.49186137]
[1769519995226,0.11342829,87893.0,87881.0,0.51784778]
[1769519995417,9.42e-05,87896.0,87881.0,0.51784778]
[1769519995418,0.11342829,87892.0,87881.0,0.51784778]
[1769519995737,0.11342829,87891.0,87881.0,0.51784778]